[Event "Titled Tuesday Blitz November 22 Late 2022"]
[White "Boyer, Mahel"]
[Black "Ivic, Velimir"]
[WhiteFideId "45102422"]
[BlackFideId "950122"]
[WhiteElo "2454"]
[BlackElo "2625"]
[Result "0-1"]
[Round "05"]
[TimeControl "180+1"]
[Date "2022.11.22"]
[WhiteClock "0:00:03"]
[BlackClock "0:00:16"]

1. e3 {[%clk 0:03:00]}  Nf6 {[%clk 0:02:54]} 2. Ke2 {[%clk 0:03:00]}  g6 {[%clk 0:02:55]} 3. Kf3 {[%clk 0:03:00]}  Bg7 {[%clk 0:02:56]} 4. Ke2 {[%clk 0:03:00]}  O-O {[%clk 0:02:57]} 5. Ke1 {[%clk 0:03:01]}  d5 {[%clk 0:02:57]} 6. d4 {[%clk 0:03:01]}  Nc6 {[%clk 0:02:56]} 7. Nf3 {[%clk 0:03:01]}  Ne4 {[%clk 0:02:56]} 8. Bb5 {[%clk 0:02:58]}  Qd6 {[%clk 0:02:45]} 9. c4 {[%clk 0:02:53]}  dxc4 {[%clk 0:02:43]} 10. Nbd2 {[%clk 0:02:52]}  Bf5 {[%clk 0:02:40]} 11. Qa4 {[%clk 0:02:48]}  e5 {[%clk 0:02:29]} 12. Nxc4 {[%clk 0:02:46]}  Qb4+ {[%clk 0:02:27]} 13. Bd2 {[%clk 0:02:13]}  Nxd2 {[%clk 0:02:24]} 14. Ncxd2 {[%clk 0:02:09]}  Qxa4 {[%clk 0:02:18]} 15. Bxa4 {[%clk 0:02:03]}  exd4 {[%clk 0:02:16]} 16. e4 {[%clk 0:01:24]}  Rfe8 {[%clk 0:02:00]} 17. Bxc6 {[%clk 0:01:08]}  bxc6 {[%clk 0:02:01]} 18. Ke2 {[%clk 0:01:09]}  Bc8 {[%clk 0:01:47]} 19. Kd3 {[%clk 0:01:03]}  Ba6+ {[%clk 0:01:40]} 20. Nc4 {[%clk 0:01:03]}  c5 {[%clk 0:01:38]} 21. b3 {[%clk 0:00:59]}  Re6 {[%clk 0:01:36]} 22. g3 {[%clk 0:00:42]}  Rae8 {[%clk 0:01:32]} 23. Rhe1 {[%clk 0:00:40]}  h6 {[%clk 0:01:16]} 24. Nd2 {[%clk 0:00:38]}  f5 {[%clk 0:01:16]} 25. f3 {[%clk 0:00:36]}  fxe4+ {[%clk 0:01:03]} 26. Rxe4 {[%clk 0:00:35]}  g5 {[%clk 0:00:54]} 27. Rae1 {[%clk 0:00:34]}  Kf7 {[%clk 0:00:51]} 28. h4 {[%clk 0:00:19]}  Bf6 {[%clk 0:00:45]} 29. hxg5 {[%clk 0:00:18]}  hxg5 {[%clk 0:00:46]} 30. Rxe6 {[%clk 0:00:17]}  Rxe6 {[%clk 0:00:47]} 31. Ne4 {[%clk 0:00:17]}  Be7 {[%clk 0:00:47]} 32. Rh1 {[%clk 0:00:14]}  Kg7 {[%clk 0:00:46]} 33. Rh5 {[%clk 0:00:13]}  Rh6 {[%clk 0:00:29]} 34. Rxh6 {[%clk 0:00:12]}  Kxh6 {[%clk 0:00:30]} 35. g4 {[%clk 0:00:08]}  Kg7 {[%clk 0:00:29]} 36. Ng3 {[%clk 0:00:08]}  Kf7 {[%clk 0:00:28]} 37. Ne4 {[%clk 0:00:06]}  Ke6 {[%clk 0:00:28]} 38. Kd2 {[%clk 0:00:03]}  Kd5 {[%clk 0:00:27]} 39. Kd3 {[%clk 0:00:03]}  Bb5 {[%clk 0:00:27]} 40. Nd2 {[%clk 0:00:04]}  Bd6 {[%clk 0:00:27]} 41. a4 {[%clk 0:00:03]}  Ba6 {[%clk 0:00:27]} 42. Ne4 {[%clk 0:00:03]}  Bf4 {[%clk 0:00:27]} 43. Nf6+ {[%clk 0:00:03]}  Ke6 {[%clk 0:00:28]} 44. Ne4 {[%clk 0:00:04]}  Kd5 {[%clk 0:00:28]} 45. Nf6+ {[%clk 0:00:04]}  Kc6 {[%clk 0:00:29]} 46. Ne4 {[%clk 0:00:05]}  Bc8 {[%clk 0:00:28]} 47. Na5+ {[%clk 0:00:05]}  Kd5 {[%clk 0:00:28]} 48. Nc4 {[%clk 0:00:06]}  Be6 {[%clk 0:00:29]} 49. Nf2 {[%clk 0:00:04]}  Bd6 {[%clk 0:00:27]} 50. Ne4 {[%clk 0:00:04]}  Be7 {[%clk 0:00:26]} 51. Na5 {[%clk 0:00:02]}  Bf7 {[%clk 0:00:24]} 52. Nc4 {[%clk 0:00:01]}  Be8 {[%clk 0:00:24]} 53. Ncd2 {[%clk 0:00:01]}  Ke5 {[%clk 0:00:24]} 54. Ke2 {[%clk 0:00:01]}  Kf4 {[%clk 0:00:24]} 55. Kf2 {[%clk 0:00:02]}  Bf7 {[%clk 0:00:24]} 56. Nc4 {[%clk 0:00:01]}  Bxc4 {[%clk 0:00:18]} 57. bxc4 {[%clk 0:00:02]}  d3 {[%clk 0:00:19]} 58. Nc3 {[%clk 0:00:02]}  c6 {[%clk 0:00:18]} 59. Nd1 {[%clk 0:00:01]}  Bf6 {[%clk 0:00:17]} 60. Kf1 {[%clk 0:00:01]}  Kxf3 {[%clk 0:00:17]} 61. Nf2 {[%clk 0:00:01]}  d2 {[%clk 0:00:17]} 62. Nd1 {[%clk 0:00:02]}  Bd4 {[%clk 0:00:18]} 63. a5 {[%clk 0:00:02]}  a6 {[%clk 0:00:18]} 64. Nf2 {[%clk 0:00:01]}  Bc3 {[%clk 0:00:14]} 65. Nd1 {[%clk 0:00:02]}  Bxa5 {[%clk 0:00:15]} 66. Nf2 {[%clk 0:00:02]}  Bb4 {[%clk 0:00:15]} 67. Nd1 {[%clk 0:00:03]}  a5 {[%clk 0:00:16]} 68. Nc3 {[%clk 0:00:03]}  Bxc3 {[%clk 0:00:16]} 0-1


[Site "https://www.chess.com"]

[Event "Titled Tuesday Blitz November 22 Late 2022"]
[White "Corrales Jimenez, Fidel"]
[Black "Barria Zuniga, Daniel"]
[WhiteFideId "3506690"]
[BlackFideId "3400816"]
[WhiteElo "2541"]
[BlackElo "2414"]
[Result "1-0"]
[Round "05"]
[TimeControl "180+1"]
[Date "2022.11.23"]
[WhiteClock "0:00:18"]
[BlackClock "0:00:02"]

1. e4 {[%clk 0:03:00]}  c5 {[%clk 0:02:54]} 2. d4 {[%clk 0:03:00]}  cxd4 {[%clk 0:02:53]} 3. c3 {[%clk 0:03:01]}  dxc3 {[%clk 0:02:54]} 4. Nxc3 {[%clk 0:03:02]}  Nc6 {[%clk 0:02:54]} 5. Nf3 {[%clk 0:03:03]}  e6 {[%clk 0:02:54]} 6. Bc4 {[%clk 0:03:03]}  a6 {[%clk 0:02:53]} 7. O-O {[%clk 0:03:04]}  Na5 {[%clk 0:02:53]} 8. Bd3 {[%clk 0:02:59]}  b5 {[%clk 0:02:53]} 9. e5 {[%clk 0:02:58]}  Bb7 {[%clk 0:02:53]} 10. Ne4 {[%clk 0:02:57]}  f5 {[%clk 0:02:10]} 11. Bg5 {[%clk 0:02:50]}  Qb8 {[%clk 0:02:02]} 12. Nd6+ {[%clk 0:02:41]}  Bxd6 {[%clk 0:02:01]} 13. exd6 {[%clk 0:02:41]}  Qxd6 {[%clk 0:02:01]} 14. Re1 {[%clk 0:02:39]}  Ne7 {[%clk 0:01:52]} 15. Ne5 {[%clk 0:02:09]}  O-O {[%clk 0:01:46]} 16. Bxb5 {[%clk 0:02:09]}  Nd5 {[%clk 0:00:22]} 17. Bxd7 {[%clk 0:02:02]}  f4 {[%clk 0:00:20]} 18. b4 {[%clk 0:01:57]}  Rf5 {[%clk 0:00:19]} 19. Bxf4 {[%clk 0:01:32]}  Rxf4 {[%clk 0:00:17]} 20. bxa5 {[%clk 0:01:32]}  Raf8 {[%clk 0:00:14]} 21. Qb3 {[%clk 0:00:54]}  Ba8 {[%clk 0:00:08]} 22. f3 {[%clk 0:00:33]}  Qc5+ {[%clk 0:00:08]} 23. Kh1 {[%clk 0:00:33]}  Qf2 {[%clk 0:00:07]} 24. Bxe6+ {[%clk 0:00:31]}  Kh8 {[%clk 0:00:07]} 25. Bxd5 {[%clk 0:00:28]}  Rh4 {[%clk 0:00:07]} 26. Nf7+ {[%clk 0:00:26]}  Kg8 {[%clk 0:00:06]} 27. Bxa8 {[%clk 0:00:23]}  g6 {[%clk 0:00:03]} 28. Ng5+ {[%clk 0:00:22]}  Kg7 {[%clk 0:00:03]} 29. Ne6+ {[%clk 0:00:20]}  Kh6 {[%clk 0:00:03]} 30. Nxf8 {[%clk 0:00:20]}  Qg3 {[%clk 0:00:03]} 31. Qe3+ {[%clk 0:00:19]}  Kg7 {[%clk 0:00:02]} 32. Qe5+ {[%clk 0:00:18]} 1-0


[Site "https://www.chess.com"]

[Event "Titled Tuesday Blitz November 22 Late 2022"]
[White "Cortes Orihuela, Javier"]
[Black "Poliakova, Varvara"]
[WhiteFideId "3414329"]
[BlackFideId "13518313"]
[WhiteElo "2080"]
[BlackElo "2099"]
[Result "0-1"]
[Round "05"]
[TimeControl "180+1"]
[Date "2022.11.23"]
[WhiteClock "0:00:01"]
[BlackClock "0:01:21"]

1. d4 {[%clk 0:02:57]}  e5 {[%clk 0:02:48]} 2. dxe5 {[%clk 0:02:53]}  d6 {[%clk 0:02:49]} 3. c4 {[%clk 0:02:50]}  Nc6 {[%clk 0:02:47]} 4. Nc3 {[%clk 0:02:46]}  Nxe5 {[%clk 0:02:46]} 5. g3 {[%clk 0:02:45]}  Nf6 {[%clk 0:02:44]} 6. Bg2 {[%clk 0:02:45]}  Be7 {[%clk 0:02:43]} 7. Nf3 {[%clk 0:02:44]}  O-O {[%clk 0:02:41]} 8. b3 {[%clk 0:02:42]}  c6 {[%clk 0:02:36]} 9. O-O {[%clk 0:02:40]}  Qc7 {[%clk 0:02:33]} 10. Bb2 {[%clk 0:02:34]}  Nxf3+ {[%clk 0:02:32]} 11. Bxf3 {[%clk 0:02:33]}  Bh3 {[%clk 0:02:31]} 12. Bg2 {[%clk 0:02:32]}  Bxg2 {[%clk 0:02:32]} 13. Kxg2 {[%clk 0:02:33]}  Qd7 {[%clk 0:02:28]} 14. e4 {[%clk 0:02:30]}  Rad8 {[%clk 0:02:25]} 15. Qd4 {[%clk 0:02:14]}  a6 {[%clk 0:02:23]} 16. a4 {[%clk 0:02:10]}  Ne8 {[%clk 0:02:20]} 17. Rad1 {[%clk 0:02:05]}  Bf6 {[%clk 0:02:18]} 18. Qd2 {[%clk 0:02:00]}  Nc7 {[%clk 0:02:15]} 19. Rfe1 {[%clk 0:01:47]}  Ne6 {[%clk 0:02:15]} 20. e5 {[%clk 0:01:25]}  Ng5 {[%clk 0:02:12]} 21. f4 {[%clk 0:00:26]}  Qh3+ {[%clk 0:02:10]} 22. Kh1 {[%clk 0:00:22]}  dxe5 {[%clk 0:02:11]} 23. Qg2 {[%clk 0:00:17]}  Qxg2+ {[%clk 0:02:10]} 24. Kxg2 {[%clk 0:00:18]}  exf4 {[%clk 0:02:09]} 25. gxf4 {[%clk 0:00:17]}  Rxd1 {[%clk 0:02:04]} 26. Nxd1 {[%clk 0:00:14]}  Bxb2 {[%clk 0:02:02]} 27. Nxb2 {[%clk 0:00:15]}  Ne6 {[%clk 0:02:00]} 28. f5 {[%clk 0:00:14]}  Nd4 {[%clk 0:01:59]} 29. Re7 {[%clk 0:00:14]}  Rb8 {[%clk 0:01:57]} 30. f6 {[%clk 0:00:12]}  gxf6 {[%clk 0:01:53]} 31. Nd3 {[%clk 0:00:12]}  Nxb3 {[%clk 0:01:52]} 32. Nf4 {[%clk 0:00:12]}  Nc5 {[%clk 0:01:48]} 33. h4 {[%clk 0:00:11]}  Kf8 {[%clk 0:01:45]} 34. Rc7 {[%clk 0:00:08]}  Nxa4 {[%clk 0:01:44]} 35. h5 {[%clk 0:00:08]}  Nc5 {[%clk 0:01:42]} 36. h6 {[%clk 0:00:08]}  a5 {[%clk 0:01:41]} 37. Nh5 {[%clk 0:00:09]}  Ne6 {[%clk 0:01:38]} 38. Rd7 {[%clk 0:00:07]}  a4 {[%clk 0:01:35]} 39. Nxf6 {[%clk 0:00:07]}  a3 {[%clk 0:01:32]} 40. Nxh7+ {[%clk 0:00:07]}  Kg8 {[%clk 0:01:31]} 41. Nf6+ {[%clk 0:00:08]}  Kh8 {[%clk 0:01:28]} 42. Rxf7 {[%clk 0:00:07]}  Ng5 {[%clk 0:01:27]} 43. Rg7 {[%clk 0:00:07]}  a2 {[%clk 0:01:26]} 44. Nd7 {[%clk 0:00:01]}  a1=Q {[%clk 0:01:22]} 45. Ne5 {[%clk 0:00:01]}  Qxe5 {[%clk 0:01:21]} 0-1


[Site "https://www.chess.com"]

[Event "Titled Tuesday Blitz November 22 Late 2022"]
[White "Deac, Bogdan-Daniel"]
[Black "Chigaev, Maksim"]
[WhiteFideId "1226380"]
[BlackFideId "4108116"]
[WhiteElo "2648"]
[BlackElo "2541"]
[Result "1/2-1/2"]
[Round "05"]
[TimeControl "180+1"]
[Date "2022.11.22"]
[WhiteClock "0:00:21"]
[BlackClock "0:00:09"]

1. d4 {[%clk 0:03:00]}  Nf6 {[%clk 0:02:57]} 2. Nf3 {[%clk 0:03:01]}  g6 {[%clk 0:02:57]} 3. Nbd2 {[%clk 0:03:01]}  Bg7 {[%clk 0:02:57]} 4. e4 {[%clk 0:03:02]}  O-O {[%clk 0:02:58]} 5. Be2 {[%clk 0:03:00]}  c5 {[%clk 0:02:51]} 6. dxc5 {[%clk 0:02:50]}  Qc7 {[%clk 0:02:46]} 7. O-O {[%clk 0:02:45]}  Qxc5 {[%clk 0:02:39]} 8. c3 {[%clk 0:02:40]}  d6 {[%clk 0:02:36]} 9. h3 {[%clk 0:02:40]}  b6 {[%clk 0:02:32]} 10. Bd3 {[%clk 0:02:33]}  Bb7 {[%clk 0:02:30]} 11. Nb3 {[%clk 0:02:33]}  Qc7 {[%clk 0:02:29]} 12. Re1 {[%clk 0:02:29]}  Nbd7 {[%clk 0:02:29]} 13. Qe2 {[%clk 0:02:15]}  a6 {[%clk 0:02:18]} 14. Bd2 {[%clk 0:01:54]}  Rfe8 {[%clk 0:02:11]} 15. Rad1 {[%clk 0:01:51]}  b5 {[%clk 0:01:54]} 16. Rc1 {[%clk 0:01:23]}  Nb6 {[%clk 0:01:40]} 17. Na5 {[%clk 0:01:17]}  Nfd7 {[%clk 0:00:59]} 18. Nxb7 {[%clk 0:00:53]}  Qxb7 {[%clk 0:01:00]} 19. b3 {[%clk 0:00:52]}  Nc5 {[%clk 0:00:48]} 20. Bc2 {[%clk 0:00:50]}  Rac8 {[%clk 0:00:36]} 21. Bb1 {[%clk 0:00:20]}  Ncd7 {[%clk 0:00:26]} 22. Bd3 {[%clk 0:00:18]}  Rc7 {[%clk 0:00:25]} 23. a4 {[%clk 0:00:09]}  bxa4 {[%clk 0:00:21]} 24. Bxa6 {[%clk 0:00:09]}  Qb8 {[%clk 0:00:18]} 25. bxa4 {[%clk 0:00:06]}  Nxa4 {[%clk 0:00:19]} 26. Bb5 {[%clk 0:00:06]}  Nac5 {[%clk 0:00:14]} 27. Rb1 {[%clk 0:00:05]}  Qc8 {[%clk 0:00:13]} 28. Nd4 {[%clk 0:00:04]}  Rf8 {[%clk 0:00:13]} 29. f3 {[%clk 0:00:03]}  Ne5 {[%clk 0:00:11]} 30. Rec1 {[%clk 0:00:03]}  h5 {[%clk 0:00:11]} 31. Be1 {[%clk 0:00:03]}  Bh6 {[%clk 0:00:11]} 32. Bd2 {[%clk 0:00:03]}  Bxd2 {[%clk 0:00:11]} 33. Qxd2 {[%clk 0:00:04]}  Ne6 {[%clk 0:00:10]} 34. Nxe6 {[%clk 0:00:03]}  Qxe6 {[%clk 0:00:11]} 35. Be2 {[%clk 0:00:04]}  Kg7 {[%clk 0:00:11]} 36. f4 {[%clk 0:00:04]}  Nd7 {[%clk 0:00:11]} 37. Qd4+ {[%clk 0:00:04]}  Qf6 {[%clk 0:00:12]} 38. Bf3 {[%clk 0:00:04]}  e5 {[%clk 0:00:11]} 39. fxe5 {[%clk 0:00:04]}  Nxe5 {[%clk 0:00:12]} 40. Be2 {[%clk 0:00:05]}  Rfc8 {[%clk 0:00:12]} 41. Kh1 {[%clk 0:00:05]}  Nd7 {[%clk 0:00:11]} 42. Rf1 {[%clk 0:00:05]}  Qe5 {[%clk 0:00:10]} 43. Rbd1 {[%clk 0:00:05]}  Rxc3 {[%clk 0:00:07]} 44. Qxd6 {[%clk 0:00:05]}  Qxd6 {[%clk 0:00:07]} 45. Rxd6 {[%clk 0:00:06]}  Ne5 {[%clk 0:00:07]} 46. Rd5 {[%clk 0:00:06]}  Re8 {[%clk 0:00:08]} 47. Rfd1 {[%clk 0:00:05]}  Re7 {[%clk 0:00:08]} 48. Bf1 {[%clk 0:00:05]}  Re3 {[%clk 0:00:09]} 49. R5d4 {[%clk 0:00:06]}  h4 {[%clk 0:00:09]} 50. Kg1 {[%clk 0:00:06]}  g5 {[%clk 0:00:09]} 51. Kf2 {[%clk 0:00:06]}  Ra3 {[%clk 0:00:10]} 52. Rd5 {[%clk 0:00:06]}  Ra2+ {[%clk 0:00:09]} 53. Kg1 {[%clk 0:00:06]}  Ra4 {[%clk 0:00:09]} 54. Bd3 {[%clk 0:00:06]}  f6 {[%clk 0:00:08]} 55. Bc2 {[%clk 0:00:06]}  Rb4 {[%clk 0:00:08]} 56. Kh1 {[%clk 0:00:05]}  Rb2 {[%clk 0:00:08]} 57. Bd3 {[%clk 0:00:05]}  Ng6 {[%clk 0:00:07]} 58. Rd4 {[%clk 0:00:04]}  Nf4 {[%clk 0:00:07]} 59. Bf1 {[%clk 0:00:05]}  Rf2 {[%clk 0:00:07]} 60. Kg1 {[%clk 0:00:05]}  Rb2 {[%clk 0:00:07]} 61. Rc1 {[%clk 0:00:05]}  Rb6 {[%clk 0:00:06]} 62. Ra1 {[%clk 0:00:05]}  Rbe6 {[%clk 0:00:06]} 63. Raa4 {[%clk 0:00:05]}  Re5 {[%clk 0:00:07]} 64. Rab4 {[%clk 0:00:05]}  Ne6 {[%clk 0:00:07]} 65. Rdc4 {[%clk 0:00:05]}  Nc5 {[%clk 0:00:08]} 66. Rb8 {[%clk 0:00:06]}  Nxe4 {[%clk 0:00:07]} 67. Rcc8 {[%clk 0:00:06]}  Nd6 {[%clk 0:00:06]} 68. Rg8+ {[%clk 0:00:06]}  Kf7 {[%clk 0:00:06]} 69. Rbf8+ {[%clk 0:00:06]}  Ke6 {[%clk 0:00:07]} 70. Rg6 {[%clk 0:00:06]}  Ne4 {[%clk 0:00:06]} 71. Bd3 {[%clk 0:00:05]}  Kd5 {[%clk 0:00:02]} 72. Bxe4+ {[%clk 0:00:05]}  Rxe4 {[%clk 0:00:03]} 73. Rgxf6 {[%clk 0:00:06]}  R7e5 {[%clk 0:00:03]} 74. Kh2 {[%clk 0:00:06]}  Kd4 {[%clk 0:00:04]} 75. Rf5 {[%clk 0:00:06]}  Ke3 {[%clk 0:00:03]} 76. Rf3+ {[%clk 0:00:06]}  Kd4 {[%clk 0:00:03]} 77. Rd8+ {[%clk 0:00:06]}  Kc4 {[%clk 0:00:03]} 78. Rc8+ {[%clk 0:00:07]}  Kd4 {[%clk 0:00:04]} 79. Rd8+ {[%clk 0:00:07]}  Kc4 {[%clk 0:00:04]} 80. Ra3 {[%clk 0:00:08]}  Kb4 {[%clk 0:00:04]} 81. Rad3 {[%clk 0:00:08]}  Kc4 {[%clk 0:00:05]} 82. Rd1 {[%clk 0:00:08]}  Kb4 {[%clk 0:00:03]} 83. Rb1+ {[%clk 0:00:08]}  Kc5 {[%clk 0:00:04]} 84. Rc1+ {[%clk 0:00:08]}  Kb6 {[%clk 0:00:03]} 85. Rb8+ {[%clk 0:00:08]}  Ka7 {[%clk 0:00:03]} 86. Rb2 {[%clk 0:00:09]}  Ra5 {[%clk 0:00:03]} 87. Rc7+ {[%clk 0:00:09]}  Ka6 {[%clk 0:00:04]} 88. Rc8 {[%clk 0:00:09]}  Ka7 {[%clk 0:00:04]} 89. Rg8 {[%clk 0:00:09]}  Re7 {[%clk 0:00:03]} 90. Rg6 {[%clk 0:00:09]}  Ree5 {[%clk 0:00:02]} 91. Rb4 {[%clk 0:00:09]}  Rab5 {[%clk 0:00:03]} 92. Rg4 {[%clk 0:00:08]}  Kb7 {[%clk 0:00:03]} 93. Rd4 {[%clk 0:00:08]}  Kc7 {[%clk 0:00:03]} 94. Ra4 {[%clk 0:00:08]}  Kb7 {[%clk 0:00:03]} 95. Rd4 {[%clk 0:00:08]}  Kc7 {[%clk 0:00:04]} 96. Rg4 {[%clk 0:00:08]}  Kb7 {[%clk 0:00:04]} 97. Rc4 {[%clk 0:00:08]}  Rbc5 {[%clk 0:00:04]} 98. Rb4+ {[%clk 0:00:07]}  Rb5 {[%clk 0:00:05]} 99. Rg4 {[%clk 0:00:07]}  Kc7 {[%clk 0:00:05]} 100. Rh6 {[%clk 0:00:08]}  Kb7 {[%clk 0:00:05]} 101. Rd4 {[%clk 0:00:07]}  Rbc5 {[%clk 0:00:05]} 102. Rd7+ {[%clk 0:00:07]}  Rc7 {[%clk 0:00:05]} 103. Rdd6 {[%clk 0:00:07]}  Ka7 {[%clk 0:00:04]} 104. Ra6+ {[%clk 0:00:07]}  Kb7 {[%clk 0:00:05]} 105. Rab6+ {[%clk 0:00:07]}  Ka7 {[%clk 0:00:05]} 106. Rbg6 {[%clk 0:00:08]}  Rd7 {[%clk 0:00:05]} 107. Rg8 {[%clk 0:00:07]}  Kb7 {[%clk 0:00:05]} 108. Rhg6 {[%clk 0:00:07]}  Rdd5 {[%clk 0:00:03]} 109. R8g7+ {[%clk 0:00:06]}  Kc8 {[%clk 0:00:03]} 110. Rh7 {[%clk 0:00:07]}  Rf5 {[%clk 0:00:02]} 111. Rg8+ {[%clk 0:00:07]}  Rd8 {[%clk 0:00:03]} 112. Rg6 {[%clk 0:00:07]}  Rc5 {[%clk 0:00:03]} 113. Ra7 {[%clk 0:00:07]}  Kb8 {[%clk 0:00:03]} 114. Rag7 {[%clk 0:00:07]}  Rb5 {[%clk 0:00:03]} 115. Rxg5 {[%clk 0:00:07]}  Rxg5 {[%clk 0:00:03]} 116. Rxg5 {[%clk 0:00:08]}  Rh8 {[%clk 0:00:03]} 117. Rg4 {[%clk 0:00:08]}  Kc7 {[%clk 0:00:03]} 118. Rd4 {[%clk 0:00:08]}  Kc6 {[%clk 0:00:03]} 119. g4 {[%clk 0:00:08]}  hxg3+ {[%clk 0:00:03]} 120. Kxg3 {[%clk 0:00:09]}  Kc5 {[%clk 0:00:04]} 121. Rd2 {[%clk 0:00:08]}  Rg8+ {[%clk 0:00:04]} 122. Kf4 {[%clk 0:00:08]}  Rh8 {[%clk 0:00:05]} 123. Kg4 {[%clk 0:00:08]}  Rg8+ {[%clk 0:00:05]} 124. Kf5 {[%clk 0:00:09]}  Rh8 {[%clk 0:00:06]} 125. Rh2 {[%clk 0:00:09]}  Kd6 {[%clk 0:00:06]} 126. Kf6 {[%clk 0:00:09]}  Rh4 {[%clk 0:00:06]} 127. Kg5 {[%clk 0:00:10]}  Rh8 {[%clk 0:00:06]} 128. Kg6 {[%clk 0:00:10]}  Ke7 {[%clk 0:00:05]} 129. Kg7 {[%clk 0:00:10]}  Rh4 {[%clk 0:00:05]} 130. Re2+ {[%clk 0:00:10]}  Kd6 {[%clk 0:00:05]} 131. Re3 {[%clk 0:00:11]}  Kd5 {[%clk 0:00:05]} 132. Kg6 {[%clk 0:00:11]}  Kd4 {[%clk 0:00:06]} 133. Ra3 {[%clk 0:00:11]}  Ke5 {[%clk 0:00:05]} 134. Kg5 {[%clk 0:00:11]}  Rh8 {[%clk 0:00:05]} 135. Re3+ {[%clk 0:00:11]}  Kd4 {[%clk 0:00:06]} 136. Ra3 {[%clk 0:00:11]}  Ke5 {[%clk 0:00:05]} 137. h4 {[%clk 0:00:11]}  Rg8+ {[%clk 0:00:05]} 138. Kh6 {[%clk 0:00:12]}  Rh8+ {[%clk 0:00:05]} 139. Kg5 {[%clk 0:00:12]}  Rg8+ {[%clk 0:00:05]} 140. Kh5 {[%clk 0:00:12]}  Rh8+ {[%clk 0:00:05]} 141. Kg4 {[%clk 0:00:13]}  Rg8+ {[%clk 0:00:06]} 142. Kh3 {[%clk 0:00:13]}  Kf6 {[%clk 0:00:06]} 143. Ra6+ {[%clk 0:00:13]}  Kg7 {[%clk 0:00:07]} 144. Ra5 {[%clk 0:00:13]}  Kh8 {[%clk 0:00:07]} 145. Rg5 {[%clk 0:00:14]}  Rxg5 {[%clk 0:00:06]} 146. hxg5 {[%clk 0:00:14]}  Kg7 {[%clk 0:00:06]} 147. Kg4 {[%clk 0:00:15]}  Kg6 {[%clk 0:00:07]} 148. Kf4 {[%clk 0:00:15]}  Kg7 {[%clk 0:00:07]} 149. Kf5 {[%clk 0:00:16]}  Kf7 {[%clk 0:00:08]} 150. g6+ {[%clk 0:00:17]}  Kg7 {[%clk 0:00:09]} 151. Kg5 {[%clk 0:00:17]}  Kg8 {[%clk 0:00:08]} 152. Kg4 {[%clk 0:00:18]}  Kg7 {[%clk 0:00:09]} 153. Kh5 {[%clk 0:00:18]}  Kg8 {[%clk 0:00:08]} 154. Kh6 {[%clk 0:00:18]}  Kh8 {[%clk 0:00:08]} 155. Kg5 {[%clk 0:00:19]}  Kg7 {[%clk 0:00:08]} 156. Kf5 {[%clk 0:00:19]}  Kg8 {[%clk 0:00:08]} 157. Kf6 {[%clk 0:00:20]}  Kf8 {[%clk 0:00:08]} 158. g7+ {[%clk 0:00:21]}  Kg8 {[%clk 0:00:09]} 159. Kg6 {[%clk 0:00:21]} 1/2-1/2


[Site "https://www.chess.com"]

[Event "Titled Tuesday Blitz November 22 Late 2022"]
[White "Desideri, Ricardo Maruchi"]
[Black "Santos Flores, Alberto"]
[WhiteFideId "2110440"]
[BlackFideId "3601234"]
[WhiteElo "1945"]
[BlackElo "2235"]
[Result "0-1"]
[Round "05"]
[TimeControl "180+1"]
[Date "2022.11.23"]
[WhiteClock "0:00:15"]
[BlackClock "0:01:12"]

1. e4 {[%clk 0:03:00]}  c5 {[%clk 0:02:59]} 2. Nf3 {[%clk 0:03:00]}  Nc6 {[%clk 0:02:59]} 3. d4 {[%clk 0:03:00]}  cxd4 {[%clk 0:03:00]} 4. Nxd4 {[%clk 0:03:00]}  g6 {[%clk 0:03:00]} 5. Nc3 {[%clk 0:03:00]}  Bg7 {[%clk 0:03:00]} 6. Be3 {[%clk 0:03:00]}  Nf6 {[%clk 0:03:01]} 7. Bc4 {[%clk 0:03:00]}  O-O {[%clk 0:03:01]} 8. Bb3 {[%clk 0:02:58]}  d6 {[%clk 0:03:00]} 9. h4 {[%clk 0:02:56]}  Ng4 {[%clk 0:02:59]} 10. Nxc6 {[%clk 0:02:52]}  Nxe3 {[%clk 0:02:45]} 11. Nxd8 {[%clk 0:02:51]}  Nxd1 {[%clk 0:02:45]} 12. Rxd1 {[%clk 0:02:50]}  Rxd8 {[%clk 0:02:45]} 13. h5 {[%clk 0:02:49]}  Be6 {[%clk 0:02:28]} 14. hxg6 {[%clk 0:02:39]}  hxg6 {[%clk 0:02:28]} 15. Rd3 {[%clk 0:02:31]}  Rac8 {[%clk 0:02:23]} 16. Kd2 {[%clk 0:02:18]}  Rc5 {[%clk 0:02:19]} 17. f4 {[%clk 0:02:15]}  Rdc8 {[%clk 0:02:17]} 18. Nd5 {[%clk 0:01:53]}  Bxd5 {[%clk 0:02:05]} 19. Rxd5 {[%clk 0:01:44]}  Bxb2 {[%clk 0:02:02]} 20. Rxc5 {[%clk 0:01:43]}  Rxc5 {[%clk 0:02:03]} 21. Rh3 {[%clk 0:01:37]}  Bf6 {[%clk 0:01:57]} 22. Rf3 {[%clk 0:01:29]}  b5 {[%clk 0:01:52]} 23. g4 {[%clk 0:01:24]}  g5 {[%clk 0:01:47]} 24. fxg5 {[%clk 0:01:13]}  Rxg5 {[%clk 0:01:48]} 25. Rg3 {[%clk 0:01:09]}  e6 {[%clk 0:01:39]} 26. a4 {[%clk 0:01:05]}  Kg7 {[%clk 0:01:29]} 27. axb5 {[%clk 0:01:00]}  Rxb5 {[%clk 0:01:30]} 28. Kd3 {[%clk 0:00:57]}  Rc5 {[%clk 0:01:29]} 29. c4 {[%clk 0:00:54]}  Ra5 {[%clk 0:01:26]} 30. Kc2 {[%clk 0:00:47]}  Ra1 {[%clk 0:01:23]} 31. g5 {[%clk 0:00:46]}  Be5 {[%clk 0:01:22]} 32. Rg2 {[%clk 0:00:41]}  a5 {[%clk 0:01:19]} 33. g6 {[%clk 0:00:39]}  a4 {[%clk 0:01:16]} 34. gxf7+ {[%clk 0:00:38]}  Kxf7 {[%clk 0:01:16]} 35. Bxa4 {[%clk 0:00:15]}  Ra2+ {[%clk 0:01:12]} 0-1


[Site "https://www.chess.com"]